[Event "Live Chess"]
[Site "Chess.com"]
[Date "2024.06.01"]
[Round "-"]
[White "Cruiseylee78"]
[Black "MagnersCarlsberg2870"]
[Result "1-0"]
[WhiteElo "1707"]
[BlackElo "1769"]
[TimeControl "300"]
[EndTime "14:23:12 PDT"]
[Termination "Cruiseylee78 won by resignation"]

1. d4 {[%clk 0:04:58.8]} 1... Nf6 {[%clk 0:04:58.7]} 2. Bf4 {[%clk 0:04:57.7]}
2... b6 {[%clk 0:04:56.6]} 3. e3 {[%clk 0:04:54.2]} 3... Bb7 {[%clk 0:04:55.7]}
4. Nf3 {[%clk 0:04:50.6]} 4... g6 {[%clk 0:04:54.4]} 5. Ne5 {[%clk 0:04:36.8]}
5... d6 {[%clk 0:04:52.6]} 6. Nf3 {[%clk 0:04:02.7]} 6... Bg7 {[%clk 0:04:51]}
7. Nbd2 {[%clk 0:03:54.6]} 7... Nbd7 {[%clk 0:04:49.5]} 8. Bd3 {[%clk
0:03:51.3]} 8... O-O {[%clk 0:04:45.1]} 9. c3 {[%clk 0:03:44.8]} 9... Re8 {[%clk
0:04:43.9]} 10. Bc4 {[%clk 0:03:41.1]} 10... a6 {[%clk 0:04:37.4]} 11. Qb3
{[%clk 0:03:30.4]} 11... e6 {[%clk 0:04:29.2]} 12. O-O-O {[%clk 0:03:25.2]}
12... b5 {[%clk 0:04:27.6]} 13. Bd3 {[%clk 0:03:22.5]} 13... e5 {[%clk
0:04:26.4]} 14. Bg3 {[%clk 0:03:19.2]} 14... e4 {[%clk 0:04:24.9]} 15. Ng5
{[%clk 0:03:16.4]} 15... Bd5 {[%clk 0:04:19.1]} 16. c4 {[%clk 0:03:09.2]} 16...
bxc4 {[%clk 0:04:01.4]} 17. Bxc4 {[%clk 0:03:00]} 17... Bxc4 {[%clk 0:04:00.3]}
18. Nxc4 {[%clk 0:02:56.3]} 18... d5 {[%clk 0:03:56.2]} 19. Na5 {[%clk
0:02:53.1]} 19... Rb8 {[%clk 0:03:47.1]} 20. Nc6 {[%clk 0:02:49.1]} 20... Qc8
{[%clk 0:03:40.2]} 21. Nxb8 {[%clk 0:02:45.8]} 21... Nxb8 {[%clk 0:03:36.7]} 22.
Kb1 {[%clk 0:02:41.6]} 22... h6 {[%clk 0:03:35.1]} 23. Nh3 {[%clk 0:02:37.4]}
23... Qe6 {[%clk 0:03:25]} 24. Rc1 {[%clk 0:02:31.1]} 24... Nbd7 {[%clk
0:02:49.2]} 25. Rxc7 {[%clk 0:02:25.8]} 25... Rb8 {[%clk 0:02:44.8]} 26. Nf4
{[%clk 0:02:18.2]} 26... Qd6 {[%clk 0:02:29]} 27. Nxd5 {[%clk 0:02:15.1]} 27...
Rxb3 {[%clk 0:02:22.3]} 28. Bxd6 {[%clk 0:02:10]} 28... Nxd5 {[%clk 0:02:21.2]}
29. Rc8+ {[%clk 0:02:00.9]} 29... Kh7 {[%clk 0:02:10.5]} 30. axb3 {[%clk
0:01:58.2]} 30... N7b6 {[%clk 0:02:02.8]} 31. Rc6 {[%clk 0:01:54.8]} 1-0

[Event "Live Chess"]
[Site "Chess.com"]
[Date "2024.06.01"]
[Round "-"]
[White "Mangoalo"]
[Black "nigelst"]
[Result "0-1"]
[WhiteElo "1067"]
[BlackElo "1664"]
[TimeControl "300"]
[EndTime "14:23:25 PDT"]
[Termination "nigelst won by resignation"]

1. e4 {[%clk 0:04:58.4]} 1... c6 {[%clk 0:04:58.8]} 2. d4 {[%clk 0:04:56.7]}
2... d5 {[%clk 0:04:57.7]} 3. exd5 {[%clk 0:04:56.6]} 3... cxd5 {[%clk
0:04:56.6]} 4. Nc3 {[%clk 0:04:56.5]} 4... Nf6 {[%clk 0:04:55.6]} 5. Bg5 {[%clk
0:04:56.1]} 5... e6 {[%clk 0:04:53.2]} 6. Nf3 {[%clk 0:04:56]} 6... Be7 {[%clk
0:04:51]} 7. Bb5+ {[%clk 0:04:55.5]} 7... Bd7 {[%clk 0:04:45.7]} 8. Bxd7+ {[%clk
0:04:53.1]} 8... Nbxd7 {[%clk 0:04:41.9]} 9. O-O {[%clk 0:04:51.8]} 9... O-O
{[%clk 0:04:39.9]} 10. Ne5 {[%clk 0:04:50.6]} 10... Nxe5 {[%clk 0:04:35.8]} 11.
dxe5 {[%clk 0:04:50.5]} 11... Nd7 {[%clk 0:04:34.2]} 12. Bxe7 {[%clk 0:04:50.4]}
12... Qxe7 {[%clk 0:04:32.8]} 13. Qf3 {[%clk 0:04:47.1]} 13... Nxe5 {[%clk
0:04:30.6]} 14. Qf4 {[%clk 0:04:43.3]} 14... Ng6 {[%clk 0:04:29.2]} 15. Qg3
{[%clk 0:04:35.7]} 15... Rac8 {[%clk 0:04:26.9]} 16. Rae1 {[%clk 0:04:33.6]}
16... d4 {[%clk 0:04:25.4]} 17. Ne4 {[%clk 0:04:31]} 17... Rxc2 {[%clk
0:04:21.2]} 18. Ng5 {[%clk 0:04:29.5]} 18... Rxb2 {[%clk 0:04:17.8]} 19. Nxh7
{[%clk 0:04:27.7]} 19... Kxh7 {[%clk 0:04:15.3]} 20. Re4 {[%clk 0:04:23.9]}
20... Kg8 {[%clk 0:04:13]} 21. h4 {[%clk 0:04:18.6]} 21... f5 {[%clk 0:04:06.8]}
22. Ree1 {[%clk 0:04:09.5]} 22... Nxh4 {[%clk 0:03:56.7]} 23. f4 {[%clk
0:04:03.3]} 23... Rc2 {[%clk 0:03:45.5]} 24. Rf2 {[%clk 0:03:59.7]} 24... Rc3
{[%clk 0:03:40.5]} 25. Qg5 {[%clk 0:03:51.5]} 25... Qxg5 {[%clk 0:03:37.9]} 26.
fxg5 {[%clk 0:03:49.7]} 26... Rc6 {[%clk 0:03:35.7]} 0-1

[Event "Live Chess"]
[Site "Chess.com"]
[Date "2024.06.01"]
[Round "-"]
[White "blunderabit"]
[Black "JohanKjeldahl"]
[Result "1-0"]
[WhiteElo "1786"]
[BlackElo "1878"]
[TimeControl "300"]
[EndTime "14:23:44 PDT"]
[Termination "blunderabit won by resignation"]

1. e4 {[%clk 0:04:54]} 1... c5 {[%clk 0:04:56.4]} 2. Nf3 {[%clk 0:04:51.3]} 2...
e6 {[%clk 0:04:54.9]} 3. b3 {[%clk 0:04:48.3]} 3... Nc6 {[%clk 0:04:53]} 4. Bb2
{[%clk 0:04:46]} 4... a6 {[%clk 0:04:51.8]} 5. c4 {[%clk 0:04:41.4]} 5... Nge7
{[%clk 0:04:46.4]} 6. d4 {[%clk 0:04:39]} 6... cxd4 {[%clk 0:04:44.5]} 7. Nxd4
{[%clk 0:04:35.7]} 7... Qc7 {[%clk 0:04:43]} 8. Be2 {[%clk 0:04:30.9]} 8... e5
{[%clk 0:04:26]} 9. Nc2 {[%clk 0:04:24.5]} 9... d6 {[%clk 0:04:22.2]} 10. O-O
{[%clk 0:04:21.3]} 10... Be6 {[%clk 0:04:20.3]} 11. Nc3 {[%clk 0:04:19.7]} 11...
g6 {[%clk 0:04:17.7]} 12. Rc1 {[%clk 0:04:10.6]} 12... Qd7 {[%clk 0:04:07.8]}
13. Ba3 {[%clk 0:03:59.4]} 13... Nc8 {[%clk 0:03:56.7]} 14. Nd5 {[%clk
0:03:51.5]} 14... Bxd5 {[%clk 0:03:54.7]} 15. Qxd5 {[%clk 0:03:49]} 15... Nb6
{[%clk 0:03:41.5]} 16. Qd3 {[%clk 0:03:43.3]} 16... Rd8 {[%clk 0:03:39]} 17.
Rcd1 {[%clk 0:03:34.6]} 17... Be7 {[%clk 0:03:35.7]} 18. Qe3 {[%clk 0:03:29.6]}
18... Nc8 {[%clk 0:03:32.9]} 19. h3 {[%clk 0:03:09.4]} 19... O-O {[%clk
0:03:28.2]} 20. f4 {[%clk 0:03:00.1]} 20... f5 {[%clk 0:03:23.9]} 21. exf5
{[%clk 0:02:57]} 21... Qxf5 {[%clk 0:03:20.1]} 22. Bd3 {[%clk 0:02:53.5]} 22...
Qh5 {[%clk 0:03:11.1]} 23. g4 {[%clk 0:02:29.8]} 23... exf4 {[%clk 0:03:03.3]}
24. Qe6+ {[%clk 0:02:11.3]} 1-0

[Event "Live Chess"]
[Site "Chess.com"]
[Date "2024.06.01"]
[Round "-"]
[White "Zhevzh1k7"]
[Black "lyricalschemes"]
[Result "0-1"]
[WhiteElo "1105"]
[BlackElo "2398"]
[TimeControl "300"]
[EndTime "14:23:57 PDT"]
[Termination "lyricalschemes won by resignation"]

1. e4 {[%clk 0:04:57.5]} 1... Nf6 {[%clk 0:04:57.3]} 2. e5 {[%clk 0:04:52.1]}
2... Nd5 {[%clk 0:04:55.7]} 3. c4 {[%clk 0:04:51.3]} 3... Nb6 {[%clk 0:04:54.3]}
4. d4 {[%clk 0:04:48.9]} 4... d6 {[%clk 0:04:52.8]} 5. exd6 {[%clk 0:04:44.6]}
5... cxd6 {[%clk 0:04:52]} 6. Nf3 {[%clk 0:04:42.4]} 6... g6 {[%clk 0:04:50.8]}
7. Nc3 {[%clk 0:04:40.2]} 7... Bg7 {[%clk 0:04:49.5]} 8. Bf4 {[%clk 0:04:38.1]}
8... Nc6 {[%clk 0:04:48.2]} 9. c5 {[%clk 0:04:28.4]} 9... dxc5 {[%clk
0:04:43.7]} 10. dxc5 {[%clk 0:04:27.1]} 10... Nd7 {[%clk 0:04:38.3]} 11. Nd5
{[%clk 0:04:20.8]} 11... e5 {[%clk 0:04:35.4]} 12. Bg5 {[%clk 0:04:05.9]} 12...
f6 {[%clk 0:04:29.7]} 13. Be3 {[%clk 0:03:48.6]} 13... O-O {[%clk 0:04:24.7]}
14. Qb3 {[%clk 0:03:45]} 14... Kh8 {[%clk 0:04:17]} 15. Bc4 {[%clk 0:03:24.1]}
15... Qa5+ {[%clk 0:04:11]} 16. Nc3 {[%clk 0:03:19.6]} 16... Nxc5 {[%clk
0:04:08.5]} 17. Bxc5 {[%clk 0:03:16.5]} 17... Qxc5 {[%clk 0:04:07.1]} 18. O-O
{[%clk 0:03:11.2]} 18... Na5 {[%clk 0:04:04.8]} 19. Qa4 {[%clk 0:02:52.1]} 19...
Nxc4 {[%clk 0:04:02.7]} 20. Ne4 {[%clk 0:02:40.8]} 20... Qc6 {[%clk 0:03:59.4]}
21. b3 {[%clk 0:02:34]} 21... Qxa4 {[%clk 0:03:55.6]} 22. bxa4 {[%clk
0:02:32.2]} 22... Bf5 {[%clk 0:03:54.9]} 23. Ng3 {[%clk 0:02:27.9]} 23... Be6
{[%clk 0:03:50]} 24. Rac1 {[%clk 0:02:23.3]} 24... Rac8 {[%clk 0:03:47.8]} 25.
Ne4 {[%clk 0:02:20.6]} 25... Bf5 {[%clk 0:03:46.2]} 26. Ng3 {[%clk 0:02:13.4]}
26... Bg4 {[%clk 0:03:44.2]} 27. Ne1 {[%clk 0:02:03.2]} 27... Bh6 {[%clk
0:03:42.9]} 28. Rc2 {[%clk 0:02:00.4]} 28... Nd2 {[%clk 0:03:41.3]} 29. Rxc8
{[%clk 0:01:53.8]} 29... Rxc8 {[%clk 0:03:41.2]} 30. Nf3 {[%clk 0:01:51.9]}
30... Nxf1 {[%clk 0:03:39.3]} 31. Nxf1 {[%clk 0:01:51.8]} 31... Rc1 {[%clk
0:03:36.9]} 32. h3 {[%clk 0:01:49]} 32... Bxf3 {[%clk 0:03:33.6]} 33. gxf3
{[%clk 0:01:47.5]} 33... f5 {[%clk 0:03:32.8]} 34. Kg2 {[%clk 0:01:45.3]} 34...
e4 {[%clk 0:03:31.1]} 35. fxe4 {[%clk 0:01:42.5]} 35... fxe4 {[%clk 0:03:31]}
36. Ne3 {[%clk 0:01:41.5]} 36... Bxe3 {[%clk 0:03:29.7]} 37. fxe3 {[%clk
0:01:41.4]} 37... Rc2+ {[%clk 0:03:29.4]} 38. Kg3 {[%clk 0:01:39.7]} 38... Rxa2
{[%clk 0:03:29.3]} 0-1

[Event "Live Chess"]
[Site "Chess.com"]
[Date "2024.06.01"]
[Round "-"]
[White "Tushinskiy"]
[Black "Keithdfg"]
[Result "1-0"]
[WhiteElo "2280"]
[BlackElo "1752"]
[TimeControl "300"]
[EndTime "14:24:03 PDT"]
[Termination "Tushinskiy won by resignation"]

1. d4 {[%clk 0:04:57.2]} 1... d6 {[%clk 0:04:52.2]} 2. c3 {[%clk 0:04:57.1]}
2... Nd7 {[%clk 0:04:46.9]} 3. Nf3 {[%clk 0:04:57]} 3... e5 {[%clk 0:04:46.2]}
4. e4 {[%clk 0:04:46.4]} 4... Ngf6 {[%clk 0:04:44.9]} 5. Bd3 {[%clk 0:04:30.5]}
5... c6 {[%clk 0:04:43.6]} 6. O-O {[%clk 0:04:29.3]} 6... Be7 {[%clk 0:04:42.5]}
7. Qe2 {[%clk 0:04:27.5]} 7... O-O {[%clk 0:04:41.1]} 8. Rd1 {[%clk 0:04:26.4]}
8... Qc7 {[%clk 0:04:39.3]} 9. Nbd2 {[%clk 0:04:25.1]} 9... Re8 {[%clk
0:04:37.9]} 10. Nf1 {[%clk 0:04:23.9]} 10... Bf8 {[%clk 0:04:36.7]} 11. Ng3
{[%clk 0:04:23.1]} 11... g6 {[%clk 0:04:34.3]} 12. dxe5 {[%clk 0:04:22.3]} 12...
dxe5 {[%clk 0:04:33.1]} 13. h4 {[%clk 0:04:20.5]} 13... Nc5 {[%clk 0:04:28.8]}
14. h5 {[%clk 0:04:19.4]} 14... Bg4 {[%clk 0:04:26.8]} 15. hxg6 {[%clk 0:04:18]}
15... hxg6 {[%clk 0:04:25.4]} 16. Bg5 {[%clk 0:04:16.1]} 16... Bg7 {[%clk
0:04:22.1]} 17. Qe3 {[%clk 0:04:13.7]} 17... Ne6 {[%clk 0:04:18.6]} 18. Bh4
{[%clk 0:04:07.1]} 18... Nh7 {[%clk 0:04:03.3]} 19. Bc4 {[%clk 0:04:03.9]} 19...
Nf4 {[%clk 0:03:53.5]} 20. Ne2 {[%clk 0:03:54.6]} 20... Bh6 {[%clk 0:03:46.1]}
21. Nxf4 {[%clk 0:03:52.9]} 21... Bxf4 {[%clk 0:03:43.2]} 22. Qe2 {[%clk
0:03:51.8]} 22... g5 {[%clk 0:03:38]} 23. Bg3 {[%clk 0:03:50.7]} 23... Kg7
{[%clk 0:03:36.2]} 24. Rd3 {[%clk 0:03:45.6]} 24... Rad8 {[%clk 0:03:31.9]} 25.
Rad1 {[%clk 0:03:43.7]} 25... Rxd3 {[%clk 0:03:30.6]} 26. Rxd3 {[%clk
0:03:43.6]} 26... Rd8 {[%clk 0:03:25.9]} 27. Qd1 {[%clk 0:03:40.9]} 27... Rxd3
{[%clk 0:03:23.5]} 28. Qxd3 {[%clk 0:03:40.8]} 28... Bxg3 {[%clk 0:03:13.2]} 29.
fxg3 {[%clk 0:03:40.7]} 29... Kf6 {[%clk 0:03:10.2]} 30. Nh2 {[%clk 0:03:27.9]}
30... Bh5 {[%clk 0:03:03.6]} 31. Qe3 {[%clk 0:03:24.3]} 31... Qb6 {[%clk
0:02:58.8]} 32. Qxb6 {[%clk 0:03:23]} 32... axb6 {[%clk 0:02:57.2]} 33. Kf2
{[%clk 0:03:21.4]} 33... Nf8 {[%clk 0:02:48.9]} 34. Nf1 {[%clk 0:03:20.1]} 34...
Ke7 {[%clk 0:02:42.7]} 35. Ne3 {[%clk 0:03:17.6]} 35... f6 {[%clk 0:02:41.2]}
36. Nf5+ {[%clk 0:03:15.6]} 36... Kd7 {[%clk 0:02:40]} 37. Ke3 {[%clk
0:03:11.8]} 37... Bg6 {[%clk 0:02:37.1]} 38. g4 {[%clk 0:03:09.8]} 38... Bxf5
{[%clk 0:02:35.4]} 39. gxf5 {[%clk 0:03:09.7]} 39... b5 {[%clk 0:02:34.1]} 40.
Bb3 {[%clk 0:03:06.9]} 40... Kd6 {[%clk 0:02:32.9]} 41. Kf3 {[%clk 0:03:05.9]}
41... Nd7 {[%clk 0:02:30.7]} 42. Kg4 {[%clk 0:03:02.9]} 42... Nc5 {[%clk
0:02:28.7]} 43. Bc2 {[%clk 0:03:02.3]} 43... b6 {[%clk 0:02:26.6]} 44. Kh5
{[%clk 0:03:01.1]} 44... Nb7 {[%clk 0:02:22.2]} 45. Kg6 {[%clk 0:02:58.2]} 45...
Ke7 {[%clk 0:02:21]} 46. b4 {[%clk 0:02:55.6]} 46... Nd6 {[%clk 0:02:18.2]} 47.
Bd3 {[%clk 0:02:54.7]} 47... c5 {[%clk 0:02:16]} 48. a3 {[%clk 0:02:46.8]} 48...
c4 {[%clk 0:02:07.9]} 49. Bc2 {[%clk 0:02:45.2]} 49... Nc8 {[%clk 0:02:03.8]}
50. a4 {[%clk 0:02:40.1]} 50... bxa4 {[%clk 0:02:01.9]} 51. Bxa4 {[%clk
0:02:38.9]} 51... Nd6 {[%clk 0:02:00.5]} 52. Bc6 {[%clk 0:02:33.1]} 52... Ne8
{[%clk 0:01:57.5]} 53. Bxe8 {[%clk 0:02:30.6]} 1-0

[Event "Live Chess"]
[Site "Chess.com"]
[Date "2024.06.01"]
[Round "-"]
[White "vincents82"]
[Black "CheckThis4"]
[Result "0-1"]
[WhiteElo "2089"]
[BlackElo "2676"]
[TimeControl "300"]
[EndTime "14:24:06 PDT"]
[Termination "CheckThis4 won by resignation"]

1. e4 {[%clk 0:04:52.5]} 1... d5 {[%clk 0:04:55.3]} 2. exd5 {[%clk 0:04:51.3]}
2... c6 {[%clk 0:04:54.1]} 3. d4 {[%clk 0:04:49.2]} 3... cxd5 {[%clk 0:04:52.5]}
4. Nf3 {[%clk 0:04:48.4]} 4... Nf6 {[%clk 0:04:48.7]} 5. Bd3 {[%clk 0:04:47.4]}
5... Nc6 {[%clk 0:04:47]} 6. c3 {[%clk 0:04:46]} 6... Bg4 {[%clk 0:04:45.8]} 7.
Bf4 {[%clk 0:04:44.6]} 7... e6 {[%clk 0:04:44.6]} 8. Nbd2 {[%clk 0:04:43.4]}
8... Bd6 {[%clk 0:04:42.9]} 9. Bxd6 {[%clk 0:04:42]} 9... Qxd6 {[%clk
0:04:42.8]} 10. h3 {[%clk 0:04:41.1]} 10... Bh5 {[%clk 0:04:41.2]} 11. O-O
{[%clk 0:04:39.9]} 11... O-O {[%clk 0:04:39.7]} 12. Qc2 {[%clk 0:04:38.3]} 12...
Rac8 {[%clk 0:04:35.2]} 13. Rae1 {[%clk 0:04:35.1]} 13... Nb4 {[%clk 0:04:31.1]}
14. Qb1 {[%clk 0:04:33.3]} 14... Nxd3 {[%clk 0:04:29.4]} 15. Qxd3 {[%clk
0:04:32.3]} 15... Bg6 {[%clk 0:04:28.6]} 16. Qe3 {[%clk 0:04:30.4]} 16... h6
{[%clk 0:04:17.4]} 17. Ne5 {[%clk 0:04:29]} 17... Bh7 {[%clk 0:04:15.9]} 18. Ng4
{[%clk 0:04:17.7]} 18... Ne4 {[%clk 0:04:01.1]} 19. Nxe4 {[%clk 0:04:16.3]}
19... Bxe4 {[%clk 0:04:00.7]} 20. f3 {[%clk 0:04:14.2]} 20... Bf5 {[%clk
0:03:56.3]} 21. Ne5 {[%clk 0:04:11.3]} 21... Qa6 {[%clk 0:03:41.5]} 22. a3
{[%clk 0:04:07.8]} 22... Rc7 {[%clk 0:03:37.5]} 23. Qe2 {[%clk 0:04:02.9]} 23...
Qxe2 {[%clk 0:03:34.9]} 24. Rxe2 {[%clk 0:03:59.6]} 24... f6 {[%clk 0:03:34.2]}
25. g4 {[%clk 0:03:58.3]} 25... Bh7 {[%clk 0:03:31.1]} 0-1

[Event "Live Chess"]
[Site "Chess.com"]
[Date "2024.06.01"]
[Round "-"]
[White "Delacorta"]
[Black "hapehansen"]
[Result "0-1"]
[WhiteElo "1586"]
[BlackElo "2243"]
[TimeControl "300"]
[EndTime "14:24:13 PDT"]
[Termination "hapehansen won by checkmate"]

1. d4 {[%clk 0:04:57.2]} 1... Nf6 {[%clk 0:04:58.1]} 2. Nf3 {[%clk 0:04:56.3]}
2... e6 {[%clk 0:04:56.3]} 3. e3 {[%clk 0:04:55.4]} 3... b6 {[%clk 0:04:54.6]}
4. Bd3 {[%clk 0:04:53.3]} 4... Bb7 {[%clk 0:04:54.1]} 5. Nbd2 {[%clk 0:04:51.9]}
5... c5 {[%clk 0:04:50.8]} 6. b3 {[%clk 0:04:50.7]} 6... Be7 {[%clk 0:04:46.6]}
7. Bb2 {[%clk 0:04:49.3]} 7... cxd4 {[%clk 0:04:44.8]} 8. exd4 {[%clk 0:04:48]}
8... O-O {[%clk 0:04:41.8]} 9. O-O {[%clk 0:04:46.7]} 9... d6 {[%clk 0:04:39.4]}
10. Re1 {[%clk 0:04:33.7]} 10... Nbd7 {[%clk 0:04:37.3]} 11. c4 {[%clk
0:04:32.3]} 11... d5 {[%clk 0:04:33.2]} 12. Ne5 {[%clk 0:04:24.8]} 12... Bb4
{[%clk 0:04:17.7]} 13. a3 {[%clk 0:04:16.3]} 13... Bxd2 {[%clk 0:04:15.6]} 14.
Qxd2 {[%clk 0:04:11.3]} 14... Nxe5 {[%clk 0:04:12.7]} 15. dxe5 {[%clk
0:04:07.3]} 15... Ne4 {[%clk 0:04:03.7]} 16. Qc2 {[%clk 0:03:55.9]} 16... Qh4
{[%clk 0:03:49.5]} 17. Bxe4 {[%clk 0:03:35.1]} 17... dxe4 {[%clk 0:03:46.8]} 18.
Re3 {[%clk 0:03:33.8]} 18... Rfd8 {[%clk 0:03:39.2]} 19. Rh3 {[%clk 0:03:23.7]}
19... Qf4 {[%clk 0:03:25.9]} 20. Bc1 {[%clk 0:02:58.8]} 20... Qxe5 {[%clk
0:03:19]} 21. Bb2 {[%clk 0:02:57.9]} 21... Qf4 {[%clk 0:03:16.3]} 22. Rd1 {[%clk
0:02:33.3]} 22... e3 {[%clk 0:02:57.9]} 23. f3 {[%clk 0:02:14.8]} 23... Qf5
{[%clk 0:02:47.6]} 24. Qxf5 {[%clk 0:01:55.8]} 24... Rxd1# {[%clk 0:02:42.1]}
0-1

[Event "Live Chess"]
[Site "Chess.com"]
[Date "2024.06.01"]
[Round "-"]
[White "McFim"]
[Black "Queensandpawns"]
[Result "0-1"]
[WhiteElo "1612"]
[BlackElo "2375"]
[TimeControl "300"]
[EndTime "14:24:13 PDT"]
[Termination "Queensandpawns won by resignation"]

1. e4 {[%clk 0:04:56.3]} 1... e5 {[%clk 0:04:59.9]} 2. Nf3 {[%clk 0:04:54.6]}
2... Nf6 {[%clk 0:04:59.8]} 3. Nxe5 {[%clk 0:04:52.9]} 3... Nc6 {[%clk
0:04:59.7]} 4. Nxc6 {[%clk 0:04:50.6]} 4... dxc6 {[%clk 0:04:59.6]} 5. Nc3
{[%clk 0:04:49]} 5... Bc5 {[%clk 0:04:57.4]} 6. h3 {[%clk 0:04:48.1]} 6... h5
{[%clk 0:04:51.5]} 7. d3 {[%clk 0:04:44.7]} 7... Be6 {[%clk 0:04:49.1]} 8. Be3
{[%clk 0:04:40.7]} 8... Qd6 {[%clk 0:04:48.2]} 9. Qe2 {[%clk 0:04:22.4]} 9...
O-O-O {[%clk 0:04:45.9]} 10. Bxc5 {[%clk 0:04:18.1]} 10... Qxc5 {[%clk
0:04:44.7]} 11. O-O-O {[%clk 0:04:15.1]} 11... Qa5 {[%clk 0:04:36.2]} 12. Qe1
{[%clk 0:04:05.5]} 12... b5 {[%clk 0:04:34.6]} 13. a3 {[%clk 0:03:59.1]} 13...
b4 {[%clk 0:04:31.5]} 14. axb4 {[%clk 0:03:57.5]} 14... Qa1+ {[%clk 0:04:23]}
15. Nb1 {[%clk 0:03:54.5]} 15... Ba2 {[%clk 0:04:22.2]} 16. Kd2 {[%clk
0:03:50.9]} 16... Qxb2 {[%clk 0:04:21.7]} 17. Rc1 {[%clk 0:03:40.4]} 17... Rhe8
{[%clk 0:04:19.5]} 18. f3 {[%clk 0:03:33.1]} 18... Nd5 {[%clk 0:04:06.3]} 19.
Qd1 {[%clk 0:03:21.8]} 19... Qxb4+ {[%clk 0:04:04]} 20. Ke2 {[%clk 0:03:18.6]}
20... Bxb1 {[%clk 0:04:03]} 0-1

[Event "Live Chess"]
[Site "Chess.com"]
[Date "2024.06.01"]
[Round "-"]
[White "JanMur7"]
[Black "Stanbad1"]
[Result "0-1"]
[WhiteElo "2290"]
[BlackElo "2640"]
[TimeControl "300"]
[EndTime "14:24:22 PDT"]
[Termination "Stanbad1 won by resignation"]

1. c4 {[%clk 0:04:57.5]} 1... Nf6 {[%clk 0:04:58.4]} 2. Nc3 {[%clk 0:04:56.9]}
2... g6 {[%clk 0:04:56.7]} 3. d4 {[%clk 0:04:56.3]} 3... Bg7 {[%clk 0:04:55.7]}
4. e4 {[%clk 0:04:55.8]} 4... d6 {[%clk 0:04:55.1]} 5. Be2 {[%clk 0:04:55.2]}
5... O-O {[%clk 0:04:52.8]} 6. Bg5 {[%clk 0:04:54.2]} 6... h6 {[%clk 0:04:51.5]}
7. Be3 {[%clk 0:04:53.2]} 7... c5 {[%clk 0:04:50.4]} 8. dxc5 {[%clk 0:04:49.2]}
8... dxc5 {[%clk 0:04:48]} 9. Qxd8 {[%clk 0:04:49.1]} 9... Rxd8 {[%clk
0:04:46.9]} 10. Bxc5 {[%clk 0:04:49]} 10... Nc6 {[%clk 0:04:46.4]} 11. f3 {[%clk
0:04:37.5]} 11... e6 {[%clk 0:04:44.9]} 12. Nh3 {[%clk 0:04:31.8]} 12... b6
{[%clk 0:04:43.2]} 13. Be3 {[%clk 0:04:29.8]} 13... Bb7 {[%clk 0:04:41.6]} 14.
O-O {[%clk 0:04:28]} 14... Rac8 {[%clk 0:04:39.9]} 15. Rfd1 {[%clk 0:04:26.1]}
15... Nd7 {[%clk 0:04:38.8]} 16. Rab1 {[%clk 0:04:18.5]} 16... Nc5 {[%clk
0:04:33.5]} 17. Nb5 {[%clk 0:04:14.8]} 17... a6 {[%clk 0:04:28.2]} 18. Nd6
{[%clk 0:04:13.3]} 18... Rb8 {[%clk 0:04:21.2]} 19. Nxb7 {[%clk 0:04:11.1]}
19... Rxd1+ {[%clk 0:04:19.6]} 20. Rxd1 {[%clk 0:04:09.4]} 20... Rxb7 {[%clk
0:04:19.2]} 21. b3 {[%clk 0:04:04.8]} 21... Nb4 {[%clk 0:04:17.1]} 22. Rd8+
{[%clk 0:03:44]} 22... Kh7 {[%clk 0:04:15.2]} 23. a3 {[%clk 0:03:41.8]} 23...
Nc2 {[%clk 0:04:13.3]} 24. Bc1 {[%clk 0:03:40.2]} 24... Nxb3 {[%clk 0:04:12.2]}
25. Bf4 {[%clk 0:03:14.8]} 25... e5 {[%clk 0:04:10.1]} 26. Bg3 {[%clk
0:03:11.6]} 26... Nbd4 {[%clk 0:04:07.4]} 27. Bd1 {[%clk 0:03:10.1]} 27... Nxa3
{[%clk 0:04:04.5]} 28. Nf2 {[%clk 0:03:07.9]} 28... Nxc4 {[%clk 0:04:02.3]} 29.
Ng4 {[%clk 0:03:05.2]} 29... f5 {[%clk 0:03:56]} 30. exf5 {[%clk 0:03:02.9]}
30... gxf5 {[%clk 0:03:55.9]} 31. Nxe5 {[%clk 0:02:59]} 31... Nxe5 {[%clk
0:03:54.7]} 32. Rxd4 {[%clk 0:02:57.5]} 32... Nxf3+ {[%clk 0:03:53.9]} 33. Bxf3
{[%clk 0:02:57.2]} 33... Bxd4+ {[%clk 0:03:53.3]} 0-1

[Event "Live Chess"]
[Site "Chess.com"]
[Date "2024.06.01"]
[Round "-"]
[White "road2gm5000"]
[Black "SavagePawn7"]
[Result "1-0"]
[WhiteElo "1080"]
[BlackElo "677"]
[TimeControl "300"]
[EndTime "14:24:26 PDT"]
[Termination "road2gm5000 won by resignation"]

1. e4 {[%clk 0:04:58.3]} 1... d5 {[%clk 0:04:58.1]} 2. exd5 {[%clk 0:04:55.7]}
2... Nf6 {[%clk 0:04:55.7]} 3. Nf3 {[%clk 0:04:54.9]} 3... Nxd5 {[%clk
0:04:53.5]} 4. Bc4 {[%clk 0:04:51.6]} 4... Be6 {[%clk 0:04:48.4]} 5. Bxd5 {[%clk
0:04:44.4]} 5... Bxd5 {[%clk 0:04:46.5]} 6. Nc3 {[%clk 0:04:43.8]} 6... Bc4
{[%clk 0:04:35.1]} 7. d3 {[%clk 0:04:41.6]} 7... Bb5 {[%clk 0:04:33.3]} 8. Nxb5
{[%clk 0:04:40.3]} 8... Nc6 {[%clk 0:04:26.8]} 9. Bf4 {[%clk 0:04:37.9]} 9... e5
{[%clk 0:04:21.6]} 10. Qe2 {[%clk 0:04:34.9]} 10... Be7 {[%clk 0:04:12]} 11.
Nxe5 {[%clk 0:04:32.1]} 11... Nxe5 {[%clk 0:04:09.1]} 12. Bxe5 {[%clk
0:04:31.4]} 12... O-O {[%clk 0:04:03.9]} 13. Bxc7 {[%clk 0:04:26.6]} 13... Qd7
{[%clk 0:03:57]} 14. a4 {[%clk 0:04:21.1]} 14... Rfe8 {[%clk 0:03:54.5]} 15. O-O
{[%clk 0:04:18.6]} 15... Bc5 {[%clk 0:03:40.4]} 16. Qh5 {[%clk 0:04:12.7]} 16...
b6 {[%clk 0:03:36.2]} 17. Bg3 {[%clk 0:04:09.1]} 17... a6 {[%clk 0:03:30.4]} 18.
Nc3 {[%clk 0:04:03]} 18... Qc6 {[%clk 0:03:04.6]} 19. Ne4 {[%clk 0:03:53.9]}
19... Re6 {[%clk 0:02:56.7]} 20. Ng5 {[%clk 0:03:49.6]} 20... Rh6 {[%clk
0:02:50.4]} 21. Qxf7+ {[%clk 0:03:45.6]} 21... Kh8 {[%clk 0:02:46]} 22. Be5
{[%clk 0:03:41.1]} 22... Qg6 {[%clk 0:02:31.6]} 23. Qxg6 {[%clk 0:03:37.7]}
23... Rxg6 {[%clk 0:02:29.4]} 24. Ne4 {[%clk 0:03:31.3]} 24... Re8 {[%clk
0:02:18.5]} 25. Bg3 {[%clk 0:03:27.7]} 25... Ree6 {[%clk 0:01:57.8]} 26. Nxc5
{[%clk 0:03:24.1]} 26... bxc5 {[%clk 0:01:56]} 27. Rfe1 {[%clk 0:03:23.6]} 27...
Rxe1+ {[%clk 0:01:47.3]} 28. Rxe1 {[%clk 0:03:23.5]} 1-0